bitfinex-derivatives/quotes_BTCF0:USTF0_20251215
["timestamp","ask_amount","ask_price","bid_price","bid_amount"]
[1765790722838,0.05739,89975.0,89974.0,0.0680745]
[1765790723036,0.26739,89975.0,89974.0,1.1233145]
[1765790723435,0.26739,89975.0,89974.0,1.1122]
[1765790723632,0.28133,89975.0,89974.0,1.1122]
[1765790724142,0.28133,89975.0,89974.0,1.91776]
[1765790724434,0.28133,89975.0,89974.0,2.61216]
[1765790726340,0.26739,89975.0,89974.0,2.61216]
[1765790727142,0.28371,89975.0,89974.0,2.61216]
[1765790732048,0.30696978,89975.0,89974.0,2.61216]
[1765790732251,0.31808418,89975.0,89974.0,2.612]
[1765790732449,0.30696978,89975.0,89974.0,2.612]
[1765790734447,0.29064978,89975.0,89974.0,2.612]
[1765790740953,0.26266978,89975.0,89974.0,2.612]
[1765790741154,0.23325978,89975.0,89974.0,2.612]
[1765790741356,0.28967978,89975.0,89974.0,2.612]
[1765790744161,0.34961199,89975.0,89974.0,2.612]
[1765790745154,0.28967978,89975.0,89974.0,2.612]
[1765790745854,0.28967978,89975.0,89974.0,1.91776]
[1765790746054,0.28967978,89975.0,89974.0,2.61184]
[1765790747155,0.28967978,89975.0,89974.0,1.11184]
[1765790747558,0.28967978,89975.0,89974.0,2.61184]
[1765790749068,0.28967978,89975.0,89974.0,0.41776]
[1765790749264,0.0675354,89967.0,89966.0,0.41732671]
[1765790749462,0.28079518,89967.0,89966.0,0.99032671]
[1765790749665,0.28079518,89967.0,89966.0,2.49032671]
[1765790750069,0.26967978,89967.0,89966.0,2.49032671]
[1765790753262,0.26987463,89967.0,89966.0,2.49032671]
[1765790753666,0.26987463,89967.0,89966.0,1.91732671]
[1765790753868,0.26987463,89967.0,89966.0,2.61140671]
[1765790754462,0.26987463,89967.0,89966.0,1.91732671]
[1765790754663,0.26987463,89967.0,89966.0,2.61140671]
[1765790756063,0.21345463,89967.0,89966.0,2.61140671]
[1765790762464,0.24084463,89967.0,89966.0,2.61140671]
[1765790765175,0.26904463,89967.0,89966.0,2.61140671]
[1765790765672,0.26904463,89967.0,89966.0,1.11140671]
[1765790771780,0.24084463,89967.0,89966.0,1.11140671]
[1765790772580,0.21345463,89967.0,89966.0,1.11140671]
[1765790774081,0.24181463,89967.0,89966.0,1.11140671]
[1765790775084,0.27001463,89967.0,89966.0,1.11140671]
[1765790778680,0.24181463,89967.0,89966.0,1.11140671]
[1765790780086,0.27001463,89967.0,89966.0,1.11140671]
[1765790795291,0.27001463,89967.0,89966.0,1.05135676]
[1765790797692,0.21345463,89967.0,89966.0,1.05135676]
[1765790803904,0.35214622,89967.0,89966.0,1.05127676]
[1765790804101,0.27209463,89967.0,89966.0,1.05127676]
[1765790804300,0.28321003,89967.0,89966.0,1.05127676]
[1765790805001,0.27209463,89967.0,89966.0,1.05127676]
[1765790805400,0.00016635,89975.0,89974.0,0.0584]
[1765790805598,0.17016635,89975.0,89974.0,1.1132]
[1765790806401,0.22880635,89975.0,89974.0,1.11324]
[1765790807712,0.19895635,89975.0,89974.0,1.11324]
[1765790808899,0.17016635,89975.0,89974.0,1.11324]
[1765790813917,0.17016635,89975.0,89974.0,1.1132]
[1765790817420,0.19499344,89975.0,89974.0,1.1132]
[1765790819226,0.25363344,89975.0,89974.0,1.1132]
[1765790820421,0.05864,89965.0,89964.0,0.4470857]
[1765790820627,0.26346709,89965.0,89964.0,0.4365357]
[1765790820821,0.26346709,89965.0,89964.0,0.4303157]
[1765790821721,0.26346709,89965.0,89964.0,0.4313157]
[1765790821927,0.26346709,89965.0,89964.0,0.4323157]
[1765790822427,0.26346709,89965.0,89964.0,0.4491757]
[1765790828720,0.26346709,89965.0,89964.0,1.1432557]
[1765790831025,0.26346709,89965.0,89964.0,1.1263957]
[1765790831230,0.26346709,89965.0,89964.0,0.3628]
[1765790831422,0.62426709,89965.0,89964.0,0.002]
[1765790831827,0.0679675,89959.0,89958.0,0.00016671]
[1765790832022,0.28279459,89959.0,89958.0,0.00016671]
[1765790832233,0.3626934,89959.0,89958.0,0.02817671]
[1765790832426,0.28279459,89959.0,89958.0,0.02817671]
[1765790833330,0.28279459,89959.0,89958.0,0.00016671]
[1765790834132,0.27167709,89959.0,89958.0,0.00016671]
[1765790834335,0.27167709,89959.0,89958.0,0.02817671]
[1765790835835,0.27167709,89959.0,89958.0,0.00016671]
[1765790837442,0.0679674,89960.0,89959.0,2.72832291]
[1765790837628,0.2579674,89960.0,89959.0,2.72832291]
[1765790838737,0.2589674,89960.0,89959.0,2.72832291]
[1765790838941,0.2599674,89960.0,89959.0,2.72832291]
[1765790847048,0.2599674,89960.0,89959.0,2.66825844]
[1765790849049,0.6207674,89960.0,89959.0,2.66825844]
[1765790849250,0.6207674,89960.0,89959.0,2.57816173]
[1765790849449,0.64581858,89960.0,89959.0,2.57816173]
[1765790851251,0.21705118,89960.0,89959.0,2.57816173]
[1765790854649,0.17105118,89960.0,89959.0,2.57816173]
[1765790854955,0.17205118,89960.0,89959.0,2.57816173]
[1765790855554,0.08205118,89960.0,89959.0,2.57816173]
[1765790855742,0.21705118,89960.0,89959.0,2.57816173]
[1765790856053,0.21605118,89960.0,89959.0,2.57916173]
[1765790856937,0.21505118,89960.0,89959.0,2.57916173]
[1765790863742,0.21505118,89960.0,89959.0,2.66916173]
[1765790868960,0.26097118,89960.0,89959.0,2.66916173]
[1765790869265,0.28833118,89960.0,89959.0,2.66916173]
[1765790869562,0.23172118,89960.0,89959.0,2.66916173]
[1765790869760,0.28833118,89960.0,89959.0,3.27340173]
[1765790871661,0.23172118,89960.0,89959.0,3.27340173]
[1765790871862,0.26097118,89960.0,89959.0,3.27340173]
[1765790873263,0.23172118,89960.0,89959.0,3.27340173]
[1765790873766,0.26097118,89960.0,89959.0,3.27340173]
[1765790875165,0.28833118,89960.0,89959.0,3.27340173]
[1765790877957,0.28833118,89960.0,89959.0,3.63420173]
[1765790878264,0.26097118,89960.0,89959.0,3.63420173]
[1765790878567,0.13318464,89964.0,89963.0,0.067077]
[1765790878776,0.32318464,89964.0,89963.0,0.761277]
[1765790879659,0.32518464,89964.0,89963.0,0.761277]
[1765790879868,0.26528,89964.0,89963.0,0.761277]
[1765790880857,0.24861,89964.0,89963.0,0.761277]
[1765790882165,0.26593,89964.0,89963.0,0.761237]
[1765790885858,0.07987377,89966.0,89965.0,0.0682367]
[1765790886056,0.32663377,89966.0,89965.0,0.0682367]
[1765790890668,0.35194491,89966.0,89965.0,0.0682367]
[1765790892462,0.35194491,89966.0,89965.0,0.05712]
[1765790892657,0.35194491,89966.0,89964.0,0.67401079]
[1765790892658,0.0678767,89965.0,89964.0,0.67401079]
[1765790892859,0.0678767,89965.0,89964.0,0.58392165]
[1765790892860,0.36285209,89965.0,89964.0,0.58392165]
[1765790893280,0.26318784,89965.0,89964.0,0.58392165]
[1765790895471,0.26318784,89965.0,89964.0,0.54178733]
[1765790895660,0.05676,89963.0,89962.0,1.60363898]
[1765790895864,0.62287114,89963.0,89962.0,1.55964792]
[1765790897573,0.71356602,89963.0,89962.0,1.55964792]
[1765790898074,1.40792602,89963.0,89962.0,1.55964792]
[1765790898875,1.80792602,89963.0,89962.0,1.55964792]
[1765790899768,0.71356602,89963.0,89962.0,1.55964792]
[1765790899974,1.40796602,89963.0,89962.0,1.55964792]
[1765790900177,1.54768457,89963.0,89962.0,1.55964792]
[1765790901577,1.40796602,89963.0,89962.0,1.55964792]
[1765790902883,1.38265488,89963.0,89962.0,1.46954338]
[1765790909885,1.40665533,89963.0,89962.0,1.46954338]
[1765790912788,1.40665533,89963.0,89962.0,1.37943763]
[1765790918095,1.40665533,89963.0,89962.0,1.26125023]
[1765790918283,1.40665533,89963.0,89962.0,1.14306283]
[1765790918479,1.40665533,89963.0,89962.0,0.99287714]
[1765790918687,1.40665533,89963.0,89962.0,0.42195917]
[1765790919187,1.38265488,89963.0,89962.0,0.42195917]
[1765790925597,0.68825488,89963.0,89962.0,0.42195917]
[1765790925891,1.38277488,89963.0,89962.0,0.42195917]
[1765790928494,1.38277488,89963.0,89962.0,0.27176405]
[1765790934896,0.68825488,89963.0,89962.0,0.27176405]
[1765790935098,1.38281488,89963.0,89962.0,0.27176405]
[1765790935992,1.74361488,89963.0,89962.0,0.27176405]
[1765790937604,1.74361488,89963.0,89962.0,0.30151405]
[1765790938003,1.74361488,89963.0,89962.0,0.27176405]
[1765790938602,1.74361488,89963.0,89962.0,0.12157123]
[1765790941099,1.74361488,89963.0,89962.0,0.18040123]
[1765790941603,1.74361488,89963.0,89962.0,0.12157123]
[1765790941795,1.74361488,89963.0,89962.0,0.18040123]
[1765790943402,1.74361488,89963.0,89962.0,0.12157123]
[1765790944795,1.74145951,89963.0,89962.0,0.12157123]
[1765790948510,1.74145951,89963.0,89962.0,0.00033937]
[1765790953608,1.74145951,89963.0,89962.0,0.02809937]
[1765790954115,1.74145951,89963.0,89962.0,0.05611937]
[1765790955110,1.74145951,89963.0,89962.0,0.02809937]
[1765790955419,1.74445951,89963.0,89962.0,0.02809937]
[1765790956509,1.74445951,89963.0,89962.0,0.05611937]
[1765790958517,1.74445951,89963.0,89962.0,0.00820147]
[1765790958709,1.74445951,89963.0,89962.0,0.03596147]
[1765790960119,1.88460157,89963.0,89962.0,0.03596147]
[1765790961309,1.74445951,89963.0,89962.0,0.03596147]
[1765790964624,1.88460319,89963.0,89962.0,0.03596147]
[1765790967314,1.74445951,89963.0,89962.0,0.03596147]
[1765790968224,1.72627965,89963.0,89962.0,0.03596147]
[1765790969826,1.72635965,89963.0,89962.0,0.03596147]
[1765790970431,1.62629463,89963.0,89962.0,0.03596147]
[1765790980630,0.93165463,89963.0,89962.0,0.03596147]
[1765790980838,1.65370463,89963.0,89962.0,0.03596147]
[1765790985840,0.95914463,89963.0,89962.0,0.03596147]
[1765790986040,1.65362463,89963.0,89962.0,0.03596147]
[1765790991045,1.65362463,89963.0,89962.0,0.02776]
[1765790991539,0.05602,89959.0,89958.0,0.00016671]
[1765790991735,1.0404928,89959.0,89958.0,0.00016671]
[1765790991935,0.9405,89959.0,89958.0,0.00016671]
[1765790995345,1.6621,89959.0,89958.0,0.00016671]
[1765790996042,1.68952363,89959.0,89958.0,0.00016671]
[1765791002845,1.78956607,89959.0,89958.0,0.00016671]
[1765791004746,1.78956607,89959.0,89958.0,0.05573671]
[1765791004951,1.68952363,89959.0,89958.0,0.05573671]
[1765791006143,1.68952363,89959.0,89958.0,0.00016671]
[1765791007851,0.99504363,89959.0,89958.0,0.00016671]
[1765791008054,1.68948363,89959.0,89958.0,0.00016671]
[1765791008457,1.68948363,89959.0,89958.0,0.02863671]
[1765791009154,1.68948363,89959.0,89958.0,0.05573671]
[1765791010547,1.68948363,89959.0,89958.0,0.07266671]
[1765791012756,0.27344363,89959.0,89958.0,0.07266671]
[1765791012958,0.003,89963.0,89962.0,0.0666871]
[1765791013148,0.023,89963.0,89962.0,0.0666871]
[1765791013343,0.183,89963.0,89962.0,1.5666871]
[1765791013549,0.15796802,89963.0,89962.0,1.5666871]
[1765791021662,0.21489802,89963.0,89962.0,1.55557]
[1765791021860,0.57569802,89963.0,89962.0,0.05557]
[1765791022262,0.21489802,89963.0,89962.0,0.05557]
[1765791035469,0.05489,89959.0,89958.0,0.05598671]
[1765791035668,0.61569,89959.0,89958.0,0.00016671]
[1765791036273,0.61569,89959.0,89936.0,0.0111203]
[1765791036274,0.05489,89951.0,89936.0,0.69452]
[1765791036477,0.58569,89951.0,89936.0,0.69452]
[1765791036875,0.58569,89951.0,89930.0,0.13055541]
[1765791036876,0.58569,89951.0,89950.0,1.02747]
[1765791038476,0.58569,89951.0,89950.0,1.03247]
[1765791038876,0.58569,89951.0,89950.0,1.03047]
[1765791039067,0.58569,89951.0,89950.0,1.02747]
[1765791039469,0.58569,89951.0,89950.0,1.0]
[1765791040477,0.58546696,89951.0,89950.0,1.0]
[1765791043579,0.58546696,89951.0,89950.0,1.02747]
[1765791045672,0.58546696,89951.0,89950.0,1.0]
[1765791047274,0.58546696,89951.0,89950.0,0.929366]
[1765791052087,0.67640515,89951.0,89950.0,0.929366]
[1765791053285,0.73621813,89951.0,89950.0,0.929366]
[1765791054384,0.67640515,89951.0,89950.0,0.929366]
[1765791055483,0.67640515,89951.0,89950.0,0.34959559]
[1765791055686,0.67640515,89951.0,89950.0,0.18731085]
[1765791055887,1.1875774,89951.0,89950.0,0.13338195]
[1765791058482,0.00654,89946.0,89945.0,1.0]
[1765791058786,0.57734,89946.0,89945.0,0.36331349]
[1765791059287,0.68851225,89946.0,89945.0,0.32437061]
[1765791059485,0.68851225,89946.0,89931.0,0.0174]
[1765791059486,0.68197225,89946.0,89931.0,0.0174]
[1765791059689,0.68197225,89946.0,89928.0,0.0174]
[1765791059690,0.3608,89932.0,89928.0,0.0174]
[1765791059891,0.3608,89929.0,89928.0,0.0174]
[1765791060193,0.5608,89929.0,89928.0,0.0174]
[1765791062186,0.5668,89929.0,89928.0,0.0174]
[1765791064696,0.59450519,89929.0,89928.0,0.0174]
[1765791065397,0.70570464,89929.0,89920.0,0.00016671]
[1765791065891,0.70570464,89929.0,89916.0,0.0174]
[1765791066091,0.44044181,89917.0,89916.0,0.0174]
[1765791066291,1.25576,89917.0,89916.0,0.0174]
[1765791067893,1.26076,89917.0,89916.0,0.0174]
[1765791068390,1.26676,89917.0,89916.0,0.0174]
[1765791069491,1.35548181,89917.0,89916.0,0.0174]
[1765791069682,0.66052181,89917.0,89916.0,0.0174]
[1765791069886,1.35560181,89917.0,89916.0,0.0174]
[1765791070287,1.35560181,89917.0,89916.0,0.07443]
[1765791070492,1.26688,89917.0,89916.0,0.07443]
[1765791073005,1.26704,89917.0,89916.0,0.07443]
[1765791075301,0.211,89917.0,89916.0,0.07443]
[1765791075517,0.031,89917.0,89916.0,0.07443]
[1765791075804,0.221,89917.0,89916.0,0.07443]
[1765791077410,0.221,89917.0,89916.0,0.47443]
[1765791078102,0.02716681,89925.0,89924.0,0.05703]
[1765791078308,0.23716681,89925.0,89924.0,0.05703]
[1765791078697,0.21016681,89925.0,89924.0,0.05703]
[1765791079203,0.21016681,89925.0,89924.0,0.0681518]
[1765791079505,0.22416681,89925.0,89924.0,0.0681518]
[1765791082191,0.27832681,89925.0,89924.0,0.05703]
[1765791082803,0.25116681,89925.0,89924.0,0.05703]
[1765791083306,0.22416681,89925.0,89924.0,0.05703]
[1765791084403,0.41496,89929.0,89928.0,0.05703]
[1765791084597,0.60496,89929.0,89928.0,0.05703]
[1765791085505,0.60796,89929.0,89928.0,0.05703]
[1765791085707,0.61296,89929.0,89928.0,0.05703]
[1765791085898,0.61596,89929.0,89928.0,0.05703]
[1765791086608,0.61596,89929.0,89928.0,0.0681513]
[1765791087097,0.61596,89929.0,89928.0,0.05703]
[1765791087908,0.61596,89929.0,89928.0,0.0681513]
[1765791090211,0.61596,89929.0,89928.0,0.0853813]
[1765791092618,0.61596,89929.0,89928.0,0.07426]
[1765791093516,0.61596,89929.0,89928.0,0.0853813]
[1765791097018,0.61596,89929.0,89928.0,0.07426]
[1765791098621,0.61596,89929.0,89928.0,0.05703]
[1765791098913,0.61596,89929.0,89928.0,0.07469]
[1765791102016,0.25516,89929.0,89928.0,0.07469]
[1765791103717,0.201,89929.0,89928.0,0.07469]
[1765791110320,0.17577389,89929.0,89928.0,0.07469]
[1765791111330,0.00016681,89937.0,89936.0,0.07692]
[1765791111533,0.17016681,89937.0,89936.0,0.77192]
[1765791111720,0.17016681,89937.0,89936.0,1.13272]
[1765791112116,0.14510776,89937.0,89936.0,1.13272]
[1765791112422,0.05996898,89947.0,89945.0,0.0703792]
[1765791112630,0.19,89947.0,89946.0,0.05926]
[1765791113527,0.19,89947.0,89946.0,0.7543]
[1765791113827,0.19,89947.0,89946.0,0.7623]
[1765791114328,0.19,89947.0,89946.0,0.7733]
[1765791115032,0.19,89947.0,89946.0,0.7663]
[1765791115233,0.19,89947.0,89946.0,0.77526]
[1765791115535,0.24667,89947.0,89946.0,0.77526]
[1765791115929,0.24667,89947.0,89946.0,0.76626]
[1765791116135,0.24667,89947.0,89946.0,0.77526]
[1765791116934,0.19,89947.0,89946.0,0.77526]
[1765791117134,0.21958,89947.0,89946.0,0.77526]
[1765791117737,0.24667,89947.0,89946.0,0.77526]
[1765791118531,0.24667,89947.0,89946.0,0.08026]
[1765791118736,0.24667,89947.0,89946.0,0.77518]
[1765791119634,0.24667,89947.0,89946.0,0.76618]
[1765791119834,0.24667,89947.0,89946.0,0.76218]
[1765791120031,0.24667,89947.0,89946.0,0.77418]
[1765791120234,0.21958,89947.0,89946.0,0.77418]
[1765791121540,0.24667,89947.0,89946.0,0.77418]
[1765791122533,0.24667,89947.0,89946.0,0.76618]
[1765791122732,0.24667,89947.0,89946.0,0.77418]
[1765791123736,0.24667,89947.0,89946.0,0.07926]
[1765791124635,0.05625,89945.0,89944.0,0.3608]
[1765791124832,0.05625,89945.0,89935.0,0.18580966]
[1765791124833,0.05625,89936.0,89935.0,0.18580966]
[1765791125030,0.24625,89936.0,89935.0,0.05515]
[1765791125642,0.24625,89936.0,89928.0,0.00016681]
[1765791125643,0.01662,89935.0,89928.0,0.00016681]
[1765791125825,0.05625,89929.0,89928.0,0.00016681]
[1765791126028,0.26625,89929.0,89928.0,0.05531681]
[1765791126937,0.26625,89929.0,89928.0,0.07743701]
[1765791127434,0.21,89929.0,89928.0,0.06643701]
[1765791127627,0.21,89929.0,89928.0,0.07743701]
[1765791128048,0.21,89929.0,89928.0,0.08443701]
[1765791128840,0.21,89929.0,89928.0,0.08643701]
[1765791129036,0.21,89929.0,89928.0,0.07543701]
[1765791129246,0.21,89929.0,89928.0,0.78247701]
[1765791129637,0.21,89929.0,89928.0,0.77047701]
[1765791129837,0.21,89929.0,89928.0,0.78347701]
[1765791130341,0.21,89929.0,89928.0,0.78447701]
[1765791130546,0.26625,89929.0,89928.0,0.08943701]
[1765791130848,0.26625,89929.0,89928.0,0.77051701]
[1765791131048,0.26625,89929.0,89928.0,0.78451701]
[1765791131346,0.26625,89929.0,89928.0,0.78551701]
[1765791132048,0.26625,89929.0,89928.0,0.78351701]
[1765791132437,0.26625,89929.0,89928.0,0.76951701]
[1765791132640,0.26625,89929.0,89928.0,0.78151701]
[1765791133047,0.26625,89929.0,89928.0,0.07443701]
[1765791133242,0.26625,89929.0,89928.0,0.08643701]
[1765791133740,0.26625,89929.0,89928.0,0.07531681]
[1765791135142,0.26625,89929.0,89928.0,0.06231681]
[1765791135343,0.26625,89929.0,89928.0,0.07431681]
[1765791135739,0.26625,89929.0,89928.0,0.06231681]
[1765791135940,0.26925,89929.0,89928.0,0.07331681]
[1765791136341,0.26925,89929.0,89928.0,0.06231681]
[1765791136542,0.26925,89929.0,89928.0,0.06631681]
[1765791136744,0.26925,89929.0,89928.0,0.07331681]
[1765791137842,0.26925,89929.0,89928.0,0.07431681]
[1765791138948,0.26925,89929.0,89928.0,0.06331681]
[1765791139148,0.26925,89929.0,89928.0,0.07431681]
[1765791140043,0.26925,89929.0,89928.0,0.06631681]
[1765791140247,0.26925,89929.0,89928.0,0.07331681]
[1765791141744,0.26925,89929.0,89928.0,0.07431681]
[1765791142148,0.26925,89929.0,89928.0,0.07631681]
[1765791142755,0.26925,89929.0,89928.0,0.07531681]
[1765791144546,0.26925,89929.0,89928.0,0.06731681]
[1765791144753,0.26925,89929.0,89928.0,0.07531681]
[1765791145347,0.26925,89929.0,89928.0,0.574293]
[1765791145549,0.26925,89929.0,89928.0,0.573293]
[1765791149751,0.26925,89929.0,89928.0,0.565293]
[1765791149955,0.26925,89929.0,89928.0,0.573293]
[1765791150657,0.26925,89929.0,89928.0,0.572293]
[1765791151057,0.26925,89929.0,89928.0,0.561293]
[1765791151362,0.26925,89929.0,89928.0,0.588573]
[1765791152456,0.26925,89929.0,89928.0,0.589573]
[1765791152856,0.26925,89929.0,89928.0,0.582573]
[1765791153062,0.26925,89929.0,89928.0,0.590573]
[1765791153756,0.213,89929.0,89928.0,0.519143]
[1765791154965,0.213,89929.0,89928.0,0.507143]
[1765791155265,0.213,89929.0,89928.0,0.520143]
[1765791155664,0.213,89929.0,89928.0,0.519143]
[1765791155862,0.5738,89929.0,89928.0,0.520143]
[1765791156666,0.5738,89929.0,89928.0,0.519143]
[1765791157466,0.5738,89929.0,89928.0,0.518143]
[1765791158056,0.5738,89929.0,89928.0,0.517143]
[1765791160766,0.5738,89929.0,89928.0,0.5282632]
[1765791160767,0.27302377,89929.0,89928.0,0.5282632]
[1765791161875,0.27302377,89929.0,89928.0,0.5302632]
[1765791162369,0.27302377,89929.0,89928.0,0.5182632]
[1765791162669,0.27302377,89929.0,89928.0,0.5302632]
[1765791163871,0.213,89929.0,89928.0,0.5302632]
[1765791164466,0.213,89929.0,89928.0,0.5182632]
[1765791164768,0.213,89929.0,89928.0,0.5232632]
[1765791164971,0.213,89929.0,89928.0,0.5322632]
[1765791165675,0.213,89929.0,89928.0,0.5192632]
[1765791165976,0.213,89929.0,89928.0,0.5322632]
[1765791169262,0.213,89929.0,89928.0,0.5192632]
[1765791169475,0.213,89929.0,89928.0,0.5322632]
[1765791179984,0.213,89929.0,89928.0,0.5302632]
[1765791180489,0.213,89929.0,89928.0,0.5182632]
[1765791180695,0.213,89929.0,89928.0,0.5302632]
[1765791181098,0.213,89929.0,89928.0,0.5182632]
[1765791181297,0.213,89929.0,89928.0,0.5302632]
[1765791181800,0.213,89929.0,89928.0,0.519143]
[1765791183302,0.213,89929.0,89928.0,0.518143]
[1765791184395,0.213,89929.0,89928.0,0.507143]
[1765791184588,0.213,89929.0,89928.0,0.519143]
[1765791186103,0.213,89929.0,89928.0,0.518143]
[1765791186292,0.213,89929.0,89928.0,0.519143]
[1765791186688,0.213,89929.0,89928.0,0.508143]
[1765791186893,0.213,89929.0,89928.0,0.521143]
[1765791188207,0.27303579,89929.0,89928.0,0.521143]
[1765791189003,0.213,89929.0,89928.0,0.521143]
[1765791189303,0.27303579,89929.0,89928.0,0.521143]
[1765791189801,0.27303579,89929.0,89928.0,0.508143]
[1765791190103,0.27303579,89929.0,89928.0,0.521143]
[1765791190397,0.27303579,89929.0,89928.0,0.508143]
[1765791190598,0.27303579,89929.0,89928.0,0.519143]
[1765791192799,0.213,89929.0,89928.0,0.519143]
[1765791194803,0.27306819,89929.0,89928.0,0.519143]
[1765791195503,0.213,89929.0,89928.0,0.519143]
[1765791196204,0.213,89929.0,89928.0,0.511143]
[1765791196401,0.213,89929.0,89928.0,0.519143]
[1765791197002,0.213,89929.0,89928.0,0.499143]
[1765791197308,0.213,89929.0,89928.0,0.519143]
[1765791200701,0.213,89929.0,89928.0,0.511143]
[1765791200901,0.213,89929.0,89928.0,0.519143]
[1765791200902,0.27306819,89929.0,89928.0,0.519143]
[1765791201199,0.213,89929.0,89928.0,0.519143]
[1765791201797,0.5738,89929.0,89928.0,0.519143]
[1765791202198,0.5738,89929.0,89928.0,0.511143]
[1765791202399,0.5738,89929.0,89928.0,0.519143]
[1765791202606,0.5738,89929.0,89928.0,0.507143]
[1765791202907,0.5738,89929.0,89928.0,0.519143]
[1765791203307,0.63384169,89929.0,89928.0,0.518143]
[1765791203500,0.5738,89929.0,89928.0,0.518143]
[1765791203903,0.5738,89929.0,89928.0,0.516143]
[1765791204205,0.63383381,89929.0,89928.0,0.516143]
[1765791205210,0.5738,89929.0,89928.0,0.516143]
[1765791207503,0.5738,89929.0,89928.0,0.517143]
[1765791208813,0.5738,89929.0,89928.0,0.510143]
[1765791209011,0.5738,89929.0,89928.0,0.517143]
[1765791209198,0.5738,89929.0,89928.0,0.516143]
[1765791211112,0.5738,89929.0,89928.0,0.49002526]
[1765791211811,1.25132,89929.0,89928.0,0.49002526]
[1765791212209,1.25132,89929.0,89928.0,0.46651676]
[1765791212410,1.25132,89929.0,89928.0,0.321409]
[1765791212411,1.74178232,89929.0,89928.0,0.321409]
[1765791212916,1.74178232,89929.0,89928.0,0.310409]
[1765791213218,1.74178232,89929.0,89928.0,0.320409]
[1765791214116,1.82169214,89929.0,89928.0,0.320409]
[1765791215210,1.74178232,89929.0,89928.0,0.320409]
[1765791218312,1.85298177,89929.0,89928.0,0.320409]
[1765791218923,1.85298177,89929.0,89928.0,0.314134]
[1765791228123,1.93274328,89929.0,89928.0,0.314134]
[1765791228726,1.53274328,89929.0,89928.0,0.314134]
[1765791228926,1.93274328,89929.0,89928.0,0.314134]
[1765791230225,1.85298177,89929.0,89928.0,0.314134]
[1765791231231,1.45298177,89929.0,89928.0,0.314134]
[1765791241829,0.77546177,89929.0,89928.0,0.314134]
[1765791242034,1.47042177,89929.0,89928.0,0.314134]
[1765791246235,1.47042177,89929.0,89928.0,0.016]
[1765791246436,1.61056545,89929.0,89928.0,0.016]
[1765791248439,1.47042177,89929.0,89928.0,0.016]
[1765791249137,1.61062513,89929.0,89928.0,0.016]
[1765791249637,1.32249111,89929.0,89928.0,0.016]
[1765791249838,1.50249111,89929.0,89928.0,0.016]
[1765791250340,1.36228775,89929.0,89928.0,0.016]
[1765791253042,1.39128852,89929.0,89928.0,0.016]
[1765791253434,1.2510883,89929.0,89928.0,0.016]
[1765791254534,1.39128852,89929.0,89928.0,0.016]
[1765791254946,1.2510883,89929.0,89928.0,0.016]
[1765791255747,1.2510883,89929.0,89928.0,0.00183138]
[1765791258347,0.5561283,89929.0,89928.0,0.00183138]
[1765791258554,1.2510883,89929.0,89928.0,0.00183138]
[1765791260664,0.5561283,89929.0,89928.0,0.00183138]
[1765791260865,1.2510883,89929.0,89928.0,0.00183138]
[1765791264856,1.39122208,89929.0,89928.0,0.00183138]
[1765791265253,1.16062598,89929.0,89928.0,0.00183138]
[1765791276074,1.24055386,89929.0,89928.0,0.00183138]
[1765791276274,1.16062598,89929.0,89928.0,0.00183138]
[1765791277973,1.16054598,89929.0,89928.0,0.00183138]
[1765791285074,1.16354598,89929.0,89928.0,0.00183138]
[1765791295294,1.26361545,89929.0,89928.0,0.00183138]
[1765791295779,1.16354598,89929.0,89928.0,0.00183138]
[1765791297197,1.16354598,89929.0,89885.0,0.3608]
[1765791297198,1.27474543,89929.0,89885.0,0.3608]
[1765791297390,0.3608,89903.0,89890.0,0.13070304]
[1765791297585,0.69488,89902.0,89890.0,0.13070304]
[1765791297786,0.86488,89902.0,89890.0,0.13070304]
[1765791298089,0.86488,89902.0,89891.0,0.00016681]
[1765791298291,0.86488,89902.0,89898.0,0.02522476]
[1765791298989,0.86488,89902.0,89898.0,0.01522476]
[1765791299290,0.86488,89902.0,89898.0,0.02522476]
[1765791300096,0.86488,89902.0,89898.0,0.01222476]
[1765791300295,0.86488,89902.0,89898.0,0.02422476]
[1765791301281,0.86488,89902.0,89900.0,0.0111236]
[1765791301480,0.86488,89902.0,89898.0,0.02422476]
[1765791302089,0.86488,89902.0,89899.0,0.0111238]
[1765791302485,0.86488,89902.0,89900.0,0.01]
[1765791303785,0.86488,89902.0,89899.0,0.012]
[1765791303986,0.86488,89902.0,89899.0,0.01]
[1765791304297,0.86488,89902.0,89900.0,0.012]
[1765791304697,0.86488,89902.0,89900.0,0.022]
[1765791305187,0.86488,89902.0,89900.0,0.01]
[1765791306591,0.86488,89902.0,89900.0,0.022]
[1765791310994,0.17,89902.0,89901.0,0.0111235]
[1765791311398,0.17,89902.0,89901.0,0.4111235]
[1765791312791,0.17,89902.0,89901.0,0.4231235]
[1765791312991,0.17,89902.0,89901.0,0.4331235]
[1765791318198,0.17,89902.0,89901.0,0.0331235]
[1765791321202,0.17,89902.0,89901.0,0.4331235]
[1765791321409,0.17,89902.0,89901.0,0.0331235]
[1765791322005,0.17,89902.0,89901.0,0.4331235]
[1765791323701,0.17,89902.0,89901.0,0.0331235]
[1765791324005,0.17,89902.0,89901.0,0.4331235]
[1765791324306,0.17,89902.0,89901.0,0.0331235]
[1765791324709,0.17,89902.0,89901.0,0.4331235]
[1765791325203,0.17,89902.0,89901.0,0.0331235]
[1765791325605,0.17,89902.0,89901.0,0.4331235]
[1765791325806,0.17,89902.0,89901.0,0.0331235]
[1765791326006,0.17,89902.0,89901.0,0.4331235]
[1765791326206,0.17,89902.0,89901.0,0.0331235]
[1765791326405,0.17,89902.0,89901.0,0.4331235]
[1765791326611,0.17,89902.0,89901.0,0.0331235]
[1765791326812,0.17,89902.0,89901.0,0.4331235]
[1765791327110,0.17,89902.0,89901.0,0.0331235]
[1765791327698,0.17,89902.0,89901.0,0.4331235]
[1765791327904,0.17,89902.0,89901.0,0.0331235]
[1765791328104,0.17,89902.0,89901.0,0.4331235]
[1765791328604,0.17,89902.0,89901.0,0.0331235]
[1765791328804,0.17,89902.0,89901.0,0.4331235]
[1765791329009,0.17,89902.0,89901.0,0.0331235]